bitfinex/quotes_ETHUSD_20241106
["timestamp","ask_amount","ask_price","bid_price","bid_amount"]
[1730935076064,0.8013,2729.3,2729.2,0.5]
[1730935083683,1.3513,2729.3,2729.2,0.5]
[1730935083889,1.91261835,2729.3,2729.2,0.5]
[1730935084587,1.42386432,2729.3,2729.2,0.5]
[1730935086540,1.42386432,2729.3,2729.2,0.06657388]
[1730935088033,1.42386432,2729.3,2727.9,0.07330646]
[1730935088034,0.01,2728.0,2727.9,0.07330646]
[1730935088324,0.01,2728.0,2727.1,0.7882]
[1730935088325,0.08256432,2728.0,2727.1,0.7882]
[1730935089183,0.01,2727.4,2726.8,0.7661]
[1730935089729,0.7796,2727.3,2726.2,4.20977602]
[1730935090324,0.01,2727.1,2726.2,4.20977602]
[1730935090526,0.01,2727.1,2726.3,0.07333718]
[1730935091236,0.07256432,2727.2,2726.3,3.0]
[1730935091237,0.01,2726.9,2726.3,3.0]
[1730935091525,0.01,2726.9,2726.2,4.20977602]
[1730935091526,0.01,2726.9,2726.2,0.7661]
[1730935092039,0.01,2726.9,2725.6,0.38253593]
[1730935092040,0.8382,2726.7,2725.7,0.7539]
[1730935092220,0.01,2726.9,2726.1,0.7923]
[1730935092532,0.01,2726.9,2726.2,0.42581974]
[1730935092892,0.7595,2727.0,2726.2,0.07334691]
[1730935093090,0.01,2727.9,2726.3,0.7923]
[1730935093091,0.7695,2727.3,2726.3,0.7923]
[1730935093328,0.7695,2727.3,2726.4,0.07333727]
[1730935093329,0.01,2727.1,2726.4,0.07333727]
[1730935093529,0.01,2727.1,2726.4,0.7973]
[1730935093828,0.7595,2727.3,2726.5,0.07334157]
[1730935094044,0.01,2727.1,2726.4,3.7973]
[1730935094420,0.01,2726.9,2726.4,0.7973]
[1730935094623,0.07256432,2727.2,2726.4,0.7973]
[1730935095050,0.07256432,2727.2,2726.5,0.07334643]
[1730935095523,0.07256432,2727.2,2726.4,3.7973]
[1730935095839,0.07256432,2727.2,2726.1,0.775]
[1730935096040,0.829,2727.1,2726.1,0.775]
[1730935096243,0.8184,2726.9,2725.7,0.8329]
[1730935096413,0.8184,2726.7,2725.7,0.8329]
[1730935096619,0.07256432,2726.6,2725.7,0.8329]
[1730935096940,0.02,2727.5,2725.6,3.82621195]
[1730935096941,0.8184,2727.1,2726.2,3.44367602]
[1730935097150,0.8184,2727.1,2726.3,0.07334646]
[1730935097510,0.8184,2727.1,2726.3,3.0]
[1730935097711,0.8184,2727.1,2726.0,3.8329]
[1730935097929,0.8184,2727.1,2726.1,0.07334647]
[1730935098138,0.8184,2727.1,2726.2,3.44367602]
[1730935098315,0.8184,2727.1,2726.3,3.07334649]
[1730935098614,0.8028,2727.4,2726.6,3.0]
[1730935098814,0.8028,2727.4,2726.7,0.07333736]
[1730935099645,0.8083,2727.8,2726.8,0.7826]
[1730935100810,0.8083,2727.8,2726.8,4.22627602]
[1730935101007,0.07256432,2728.4,2727.2,3.0]
[1730935101317,0.8072,2728.3,2727.3,0.8006]
[1730935101532,0.07256432,2728.2,2727.3,0.8006]
[1730935102148,0.01,2729.1,2727.5,3.44367602]
[1730935102149,0.7829,2729.1,2727.5,3.44367602]
[1730935102459,0.7829,2728.9,2727.6,3.0]
[1730935102735,0.85546432,2728.8,2727.7,0.07331194]
[1730935102882,0.85546432,2728.8,2727.1,0.01]
[1730935102883,0.85546432,2728.8,2727.9,3.0]
[1730935103099,0.7829,2728.8,2727.9,3.0]
[1730935103774,0.07256432,2729.4,2728.2,3.0]
[1730935103775,0.7829,2729.2,2728.2,3.0]
[1730935103975,0.7829,2729.2,2728.3,0.07329121]
[1730935104177,0.7829,2729.2,2728.3,0.7695]
[1730935104541,0.7829,2729.7,2728.7,3.44367602]
[1730935104864,0.7829,2729.7,2728.5,3.0]
[1730935105068,0.7829,2729.7,2728.4,0.7695]
[1730935105069,0.07256432,2729.6,2728.4,0.7695]
[1730935105441,0.7617,2729.5,2727.9,3.0]
[1730935105640,0.7617,2729.2,2727.8,0.8204]
[1730935105844,3.44367602,2729.0,2727.4,0.8204]
[1730935106140,0.7617,2728.8,2727.4,0.8204]
[1730935106341,0.7617,2728.6,2727.4,0.8204]
[1730935106549,0.07256432,2728.5,2727.4,0.8204]
[1730935106757,0.07256432,2728.5,2727.1,0.8204]
[1730935107186,0.798,2728.4,2727.1,1.26019248]
[1730935107352,0.07256432,2728.3,2727.1,1.26019248]
[1730935107559,0.07256432,2728.3,2727.2,0.51311019]
[1730935107740,0.07256432,2728.3,2727.1,4.26407602]
[1730935108340,0.07256432,2728.3,2727.2,3.0]
[1730935109463,0.07256432,2728.3,2727.1,0.8204]
[1730935112265,0.07256432,2728.3,2727.2,0.07331771]
[1730935113691,0.07256432,2728.3,2727.1,1.26019248]
[1730935114111,0.07256432,2728.3,2727.1,0.8204]
[1730935114409,0.8306,2728.2,2727.0,3.0]
[1730935114612,0.90316432,2728.1,2727.0,3.0]
[1730935114815,0.90316432,2728.1,2727.1,0.07332255]
[1730935115479,0.90316432,2728.1,2727.1,0.07332254]
[1730935115679,0.90316432,2728.1,2727.0,3.0]
[1730935115680,0.8306,2728.1,2727.4,3.0]
[1730935117382,0.8306,2728.1,2727.0,0.55]
[1730935117584,0.8306,2728.1,2727.0,5.09346983]
[1730935117881,0.8306,2728.1,2727.1,3.61738793]
[1730935118083,0.8306,2728.1,2727.1,0.7702]
[1730935118287,0.8306,2728.1,2727.1,1.69620133]
[1730935118481,0.8306,2728.1,2727.2,0.6174852]
[1730935119106,0.8306,2728.1,2727.0,3.0]
[1730935119307,0.88946432,2728.0,2727.1,0.07331792]
[1730935119620,0.88946432,2728.0,2726.8,0.92692672]
[1730935119822,0.88946432,2728.0,2726.7,0.7851]
[1730935120104,0.88946432,2728.0,2726.8,0.61812224]
[1730935120306,0.88946432,2728.0,2726.6,0.73925798]
[1730935120512,0.88946432,2728.0,2726.7,0.6183015]
[1730935120711,0.88946432,2728.0,2726.8,0.07333389]
[1730935120881,0.88946432,2728.0,2726.7,0.07333384]
[1730935121217,0.8169,2728.0,2727.1,0.7851]
[1730935121376,0.8169,2728.0,2727.1,1.71241811]
[1730935121575,0.8169,2728.0,2727.2,0.61817279]
[1730935121874,0.8169,2728.0,2727.3,0.07331964]
[1730935122201,0.8169,2728.0,2727.2,3.92731811]
[1730935122513,0.8169,2728.0,2727.1,3.7851]
[1730935122726,0.8169,2728.0,2727.2,0.61830022]
[1730935123073,0.8169,2728.0,2727.1,3.7851]
[1730935123274,0.8169,2728.0,2727.2,0.6182942]
[1730935123471,0.8169,2728.0,2727.2,1.54582206]
[1730935124487,0.8169,2728.0,2727.3,0.0733133]
[1730935124922,0.8169,2728.0,2727.3,3.61851474]
[1730935125129,0.8169,2728.0,2727.1,4.81858195]
[1730935125292,0.8169,2728.0,2727.2,4.54638578]
[1730935125493,0.8039,2728.3,2727.5,3.0]
[1730935125804,0.8039,2728.3,2727.9,3.0]
[1730935126019,0.8039,2729.2,2727.9,3.0]
[1730935126188,0.8039,2729.0,2727.7,0.8048]
[1730935126396,0.8039,2729.0,2727.8,0.61835816]
[1730935126624,0.8039,2729.0,2727.7,0.8048]
[1730935126929,0.8039,2729.0,2727.9,3.0]
[1730935127089,0.8039,2729.0,2728.0,0.69150378]
[1730935127291,0.8039,2729.0,2728.2,0.7561]
[1730935127949,0.8039,2729.0,2728.0,1.66653103]
[1730935128112,0.8039,2729.0,2728.0,0.92727305]
[1730935128313,0.7624,2728.8,2727.9,3.0]
[1730935128626,0.7624,2728.8,2728.0,0.07329822]
[1730935128951,0.7624,2728.8,2727.9,3.0]
[1730935129149,0.7624,2728.8,2727.5,8.90096706]
[1730935129444,0.07256432,2728.7,2727.5,3.0]
[1730935129622,0.7545,2728.6,2727.3,3.39917581]
[1730935129822,0.82706432,2728.5,2727.3,3.39917581]
[1730935130356,0.82706432,2728.5,2727.4,1.54664758]
[1730935130848,0.82706432,2728.5,2727.2,1.83739493]
[1730935131005,0.82706432,2728.5,2727.3,3.61874071]
[1730935131207,0.82706432,2728.5,2727.1,5.07789838]
[1730935131576,0.82706432,2728.5,2727.2,1.5469781]
[1730935132319,0.82706432,2728.5,2727.2,0.61879124]
[1730935132519,0.82706432,2728.5,2727.2,4.54701483]
[1730935132829,0.82706432,2728.5,2727.2,3.0]
[1730935133031,0.82706432,2728.5,2727.1,4.32970908]
[1730935133549,0.8,2728.3,2726.9,0.7481893]
[1730935133869,0.8,2728.1,2726.6,5.36249876]
[1730935134024,0.8,2727.9,2726.7,1.54807068]
[1730935134220,0.55,2728.2,2726.7,1.54807068]
[1730935134221,0.8,2727.7,2726.7,1.54807068]
[1730935134422,0.8,2727.7,2726.6,4.72888489]
[1730935134623,0.8,2727.7,2726.7,1.62148563]
[1730935134822,0.8,2727.7,2726.7,4.00220626]
[1730935135025,0.8,2727.7,2726.7,3.07332854]
[1730935135561,0.07256432,2727.6,2726.7,3.0]
[1730935135772,0.8,2727.5,2726.7,3.0]
[1730935138960,0.8,2727.5,2726.4,3.0]
[1730935139156,0.7698,2727.3,2726.4,3.39917581]
[1730935139347,0.7698,2727.3,2726.7,3.0]
[1730935139555,0.7698,2727.3,2726.4,3.0]
[1730935139939,0.7698,2727.3,2726.7,3.0]
[1730935140263,0.7698,2727.3,2726.8,0.07333453]
[1730935140858,0.7698,2727.3,2726.9,0.38226512]
[1730935143567,0.7698,2727.3,2726.5,0.0733423]
[1730935143737,0.7698,2727.3,2726.5,0.45563037]
[1730935144275,0.7698,2727.3,2726.5,0.38228807]
[1730935144741,0.786,2727.1,2726.5,0.38228807]
[1730935145072,0.85856432,2727.0,2726.5,0.38228807]
[1730935145232,0.786,2727.0,2726.5,0.38228807]
[1730935145428,0.07256432,2726.9,2726.5,0.38228807]
[1730935145630,0.786,2726.8,2725.8,1.33038287]
[1730935145874,0.786,2726.8,2726.0,3.45635572]
[1730935146057,0.786,2726.8,2726.1,0.07334734]
[1730935146231,0.786,2726.8,2726.1,0.39917581]
[1730935146639,0.786,2726.8,2726.3,3.45635572]
[1730935146871,0.786,2726.8,2726.4,0.07334304]
[1730935147066,0.786,2726.8,2726.4,3.07334304]
[1730935147453,0.786,2726.8,2726.4,3.0]
[1730935148536,0.7718,2727.7,2726.4,3.0]
[1730935148874,0.7718,2727.5,2726.4,3.0]
[1730935149201,0.7718,2727.5,2726.6,3.45635572]
[1730935149343,0.7718,2727.5,2726.7,3.07333209]
[1730935149742,0.7718,2728.2,2727.0,3.0]
[1730935152086,0.7949,2728.5,2727.9,0.07329812]
[1730935152266,0.7949,2728.5,2727.8,3.0]
[1730935152583,0.7949,2728.5,2727.7,0.7481893]
[1730935152812,0.7949,2728.5,2727.8,0.61866322]
[1730935153386,0.7949,2728.5,2727.7,1.21205456]
[1730935153676,0.7949,2728.5,2727.7,1.5466609]
[1730935153839,0.7949,2728.5,2727.8,0.61858413]
[1730935154057,0.7949,2728.5,2727.8,4.36677343]
[1730935154281,0.7949,2728.5,2727.9,4.61996019]
[1730935154489,0.7949,2728.5,2727.8,4.5163893]
[1730935154644,0.7949,2728.5,2727.9,1.54571434]
[1730935154848,0.7949,2728.5,2727.8,1.69563995]
[1730935155074,0.7949,2728.5,2727.9,0.61829149]
[1730935155399,0.7949,2728.5,2727.6,0.29336025]
[1730935155574,0.7748,2728.4,2727.6,0.29336025]
[1730935155875,0.7748,2728.4,2727.5,1.21526517]
[1730935156081,0.8098,2728.2,2727.3,1.67585033]
[1730935156282,0.8098,2728.2,2727.4,0.61846925]
[1730935156457,0.8098,2728.2,2727.2,1.67585033]
[1730935156653,0.8098,2728.2,2727.2,2.2942901]
[1730935156978,0.89306432,2728.1,2727.1,0.28343096]
[1730935157144,0.89306432,2728.1,2727.0,0.7481893]
[1730935157346,0.89306432,2728.1,2726.8,1.67618138]
[1730935157677,0.89306432,2728.1,2726.9,0.51287055]
[1730935157894,0.89306432,2728.1,2727.0,0.61871352]
[1730935158207,0.89306432,2728.1,2726.8,1.67618138]
[1730935158208,0.8205,2728.1,2726.8,1.67618138]
[1730935158407,0.7849,2727.9,2726.9,0.61889707]
[1730935158607,0.7849,2727.9,2726.9,4.5469443]
[1730935158771,0.7849,2727.9,2727.0,0.07332515]
[1730935158970,0.7849,2727.9,2726.8,0.28179047]
[1730935158971,0.7849,2727.9,2726.8,3.28179047]
[1730935159166,0.7849,2727.9,2726.8,3.0]
[1730935159384,0.7849,2727.9,2726.8,3.43954269]
[1730935159725,0.7849,2727.9,2726.9,5.0605165]
[1730935159868,0.7849,2727.9,2727.0,4.54764868]
[1730935160063,0.7849,2727.9,2727.1,0.61905947]
[1730935160300,0.7849,2727.9,2727.0,0.92835364]
[1730935160508,0.7849,2727.9,2727.0,4.54728536]
[1730935160704,0.7849,2727.9,2727.1,0.61893172]
[1730935161110,0.7849,2727.9,2727.0,3.0]
[1730935161291,0.7849,2727.9,2726.9,1.18773199]
[1730935161495,0.7849,2727.9,2726.9,4.80633361]
[1730935161698,0.7849,2727.9,2727.0,4.54650405]
[1730935161879,0.7849,2727.9,2727.1,0.07332002]
[1730935162082,0.7849,2727.9,2727.2,3.0]
[1730935163072,0.7849,2727.9,2727.3,0.07331463]
[1730935163318,0.7849,2727.9,2727.0,0.7481893]
[1730935163474,0.7849,2727.9,2726.9,3.0]
[1730935164114,0.7849,2727.9,2726.6,5.15101898]
[1730935164310,0.7849,2727.9,2726.7,5.73411933]
[1730935164524,0.78,2727.7,2726.7,3.43954269]
[1730935164804,0.78,2727.7,2726.8,1.13155313]
[1730935165012,0.78,2727.7,2726.8,0.5128732]
[1730935165481,0.78,2727.7,2726.8,0.51287318]
[1730935165612,0.01,2728.2,2726.8,0.43954269]
[1730935165613,0.78,2727.5,2726.8,0.43954269]
[1730935166011,0.78,2727.5,2726.6,5.00645689]
[1730935166316,0.78,2727.5,2726.7,1.13156474]
[1730935166511,0.78,2727.5,2726.7,4.8220043]
[1730935166716,0.78,2727.5,2726.7,3.51287746]
[1730935166916,0.78,2727.5,2726.7,3.43954269]
[1730935169122,0.78,2727.5,2726.8,0.07332684]
[1730935169672,0.78,2727.5,2726.8,0.51286953]
[1730935169822,0.78,2727.5,2727.1,3.0]
[1730935170024,0.01697127,2727.5,2727.1,3.0]
[1730935170225,0.07256432,2728.9,2727.5,3.0]
[1730935170465,0.07256432,2729.3,2727.9,3.0]
[1730935170826,0.08256432,2729.3,2727.9,3.0]
[1730935171235,0.07256432,2729.3,2727.9,3.0]
[1730935171526,0.08256432,2729.3,2727.9,3.0]
[1730935171857,0.01,2729.3,2727.9,3.0]
[1730935172032,0.08256432,2729.3,2727.9,3.0]
[1730935173094,0.7647,2729.1,2727.5,3.28417164]
[1730935173304,0.7647,2728.9,2727.6,0.07330557]
[1730935173506,0.7647,2728.7,2727.6,1.13072253]
[1730935173657,0.7647,2728.5,2727.6,1.43978211]
[1730935173852,0.7647,2728.5,2727.9,3.0]
[1730935174157,0.7647,2728.5,2728.0,0.07329982]
[1730935174567,0.7647,2728.5,2728.0,0.3811917]
[1730935174798,0.7647,2728.5,2727.9,3.0]
[1730935175158,0.7647,2728.5,2728.0,0.61770776]
[1730935175353,0.7647,2728.5,2727.9,3.0]
[1730935176999,0.7647,2728.5,2727.6,0.43954269]
[1730935177494,0.7647,2728.5,2727.3,0.7471774]
[1730935177790,0.7647,2728.5,2727.3,1.18672009]
[1730935177977,0.7647,2728.5,2727.4,1.05737104]
[1730935178189,0.7647,2728.5,2727.5,0.07331062]
[1730935178412,0.7647,2728.5,2727.5,1.13062949]
[1730935178698,0.7647,2728.5,2727.6,0.82073439]
[1730935178901,0.7647,2728.5,2727.5,3.0]
[1730935180194,0.7647,2728.5,2727.5,3.43954269]
[1730935180616,0.7647,2728.5,2727.5,3.0]
[1730935180820,0.7647,2728.5,2727.6,4.43826318]
[1730935180979,0.7647,2728.5,2727.5,3.0]
[1730935181183,0.09164087,2728.4,2727.5,3.0]
[1730935181419,0.7949,2728.7,2727.5,3.0]
[1730935181588,0.88654082,2728.6,2727.5,3.0]
[1730935181792,0.88654082,2728.6,2727.6,0.07331263]
[1730935182715,0.88654082,2728.6,2727.5,3.0]
[1730935183227,0.88654082,2728.6,2727.6,0.07331263]
[1730935185032,0.88654082,2728.6,2727.5,3.0]
[1730935185699,0.88654082,2728.6,2727.6,0.07331258]
[1730935186026,0.88654082,2728.6,2727.5,3.43954269]
[1730935186589,0.88654082,2728.6,2727.2,3.0]
[1730935186920,0.88654082,2728.6,2727.2,0.43954269]
[1730935187125,0.88654082,2728.6,2727.1,3.7471774]
[1730935187126,0.78,2728.4,2727.1,3.0]
[1730935187420,0.78,2728.2,2727.2,4.9829604]
[1730935187634,0.78,2728.2,2727.2,0.43954269]
[1730935188069,0.78,2728.2,2727.2,1.05697329]
[1730935188254,0.78,2728.2,2727.2,1.36573636]
[1730935188583,0.78,2728.2,2727.3,0.51286217]
[1730935188727,0.78,2728.2,2727.3,0.82073439]
[1730935188924,0.78,2728.2,2727.3,0.43954269]
[1730935190150,0.78,2728.2,2727.1,3.2948284]
[1730935190355,0.78,2728.2,2727.2,0.61750565]
[1730935190731,0.78,2728.2,2727.2,1.98359136]
[1730935190974,0.78,2728.2,2727.2,1.36608571]
[1730935191534,0.78,2728.2,2727.3,0.61812769]
[1730935192447,0.78,2728.2,2727.3,3.0]
[1730935192650,0.78,2728.2,2727.4,0.61838755]
[1730935192831,0.78,2728.2,2727.3,3.0]
[1730935193043,0.78,2728.2,2727.2,1.18672009]
[1730935193229,0.78,2728.2,2727.2,4.8051644]
[1730935193432,0.09164393,2728.1,2727.3,4.54611078]
[1730935193779,0.7899,2728.0,2727.1,0.67690518]
[1730935193931,0.88155903,2727.9,2727.1,0.67690518]
[1730935194131,0.88155903,2727.9,2727.1,0.38207678]
[1730935194747,0.88155903,2727.9,2727.0,1.00164719]
[1730935194937,0.88155903,2727.9,2727.0,3.51287502]
[1730935195450,0.7899,2727.9,2727.2,3.45470067]
[1730935196177,0.7899,2727.9,2727.3,3.0]
[1730935196549,0.55,2728.8,2727.3,3.0]
[1730935196749,0.55,2728.6,2727.3,3.0]
[1730935196967,0.03091405,2728.5,2727.3,3.0]
[1730935197274,0.03091405,2728.5,2727.2,0.02]
[1730935198266,0.03091405,2728.5,2727.3,3.3811917]
[1730935198574,0.03091405,2728.5,2727.3,3.0]
[1730935198741,0.03091405,2728.5,2727.4,0.01]
[1730935198945,0.03091405,2728.5,2727.4,0.08332018]
[1730935199170,0.03091405,2728.5,2727.4,0.01]
[1730935199393,0.03091405,2728.5,2727.2,0.3129028]
[1730935199592,0.03091405,2728.5,2727.4,0.01]
[1730935199593,0.8109,2728.5,2727.4,0.01]
[1730935199896,0.7584,2728.3,2727.4,0.01]
[1730935200060,0.78931405,2728.2,2727.4,0.01]
[1730935200265,0.78931405,2728.2,2727.2,1.23191633]
[1730935200266,0.55,2728.1,2727.2,0.92901353]
[1730935200468,0.55,2727.7,2726.9,0.38199562]
[1730935200794,0.55,2727.7,2726.3,1.1407661]
[1730935200795,0.80511405,2727.6,2726.6,0.01]
[1730935201497,0.80511405,2727.6,2726.3,1.33184308]
[1730935201664,0.7749,2727.4,2726.3,1.31184308]
[1730935201990,0.7749,2727.2,2726.3,0.39198396]
[1730935202187,0.8278,2727.0,2726.3,0.01]
[1730935202688,0.8278,2727.0,2726.3,0.02]
[1730935202890,0.8278,2727.0,2726.3,3.02]
[1730935203077,0.8278,2727.0,2726.3,0.01]
[1730935203488,0.8278,2727.0,2726.1,0.01]
[1730935203791,0.79951405,2726.9,2726.1,0.01]
[1730935204101,0.79951405,2726.9,2726.0,0.07335293]
[1730935204303,0.79951405,2726.9,2725.9,3.02]
[1730935204304,0.79951405,2726.9,2725.9,3.01]
[1730935204589,0.79951405,2726.9,2725.7,0.01]
[1730935205162,0.79951405,2726.9,2726.0,0.01]
[1730935205596,0.79951405,2726.9,2725.8,0.01]
[1730935205892,0.79951405,2726.9,2725.6,0.40253593]
[1730935206268,0.79951405,2726.9,2725.6,3.40253593]
[1730935206480,0.79951405,2726.9,2725.6,3.68726239]
[1730935206706,0.7887,2726.7,2725.6,0.38253593]
[1730935206918,0.55,2726.8,2725.6,0.38253593]
[1730935206919,0.81961405,2726.6,2725.6,0.38253593]
[1730935207414,0.7911,2726.4,2725.6,0.38253593]
[1730935207619,0.82201405,2726.3,2725.6,0.38253593]
[1730935207969,0.7911,2726.1,2725.6,0.38253593]
[1730935208214,0.82201405,2726.0,2725.6,0.38253593]
[1730935210640,0.7911,2725.8,2725.6,0.38253593]
[1730935210914,0.83261405,2725.7,2725.6,0.38253593]
[1730935211305,1.38261405,2725.7,2725.6,0.38253593]
[1730935212369,1.95456907,2725.7,2725.6,0.38253593]
[1730935212715,1.95456907,2725.7,2725.3,0.130987]
[1730935212716,0.8017,2725.5,2725.3,0.130987]
[1730935212872,1.38261405,2725.4,2725.3,0.130987]
[1730935213072,0.8106,2725.3,2724.9,0.39588838]
[1730935213308,0.8106,2725.1,2724.9,0.39588838]
[1730935213506,0.55,2725.4,2724.9,0.39588838]
[1730935213507,1.39151405,2725.0,2724.9,0.39588838]
[1730935214986,0.84151405,2725.0,2724.9,0.39588838]
[1730935215192,0.7848,2725.5,2724.9,0.39588838]
[1730935215599,0.7848,2725.3,2724.9,0.39588838]
[1730935215923,0.7848,2725.1,2724.9,0.39588838]
[1730935216123,0.03091405,2725.0,2724.9,0.39588838]
[1730935216324,0.80781405,2725.0,2724.9,0.39588838]
[1730935217203,0.0439367,2725.0,2724.9,0.39588838]
[1730935217929,0.5939367,2725.0,2724.9,0.39588838]
[1730935220839,0.0439367,2725.0,2724.9,0.39588838]
[1730935223406,0.5939367,2725.0,2724.9,0.39588838]
[1730935223631,0.55,2724.9,2724.1,3.0]
[1730935223824,0.0439367,2725.0,2723.7,1.36219947]
[1730935224214,0.0439367,2725.0,2723.7,1.65505446]
[1730935224731,0.0439367,2725.0,2723.6,0.83463597]
[1730935224732,0.7888,2725.0,2723.6,0.42259328]
[1730935224937,0.7597,2724.8,2723.6,0.42259328]
[1730935225132,0.7597,2724.8,2723.6,0.37259328]
[1730935225344,0.7597,2724.7,2723.6,0.37259328]
[1730935225503,4.33693613,2723.8,2722.9,0.43594573]
[1730935225828,0.7597,2723.7,2723.0,0.0734491]
[1730935226035,0.7597,2724.0,2723.0,0.0734491]
[1730935226201,0.7597,2724.0,2723.1,4.33693613]
[1730935226403,0.75751,2724.0,2723.2,0.7802]
[1730935226626,4.33693613,2725.0,2723.3,0.45461312]
[1730935226827,3.0,2725.2,2723.3,0.45461312]
[1730935227027,0.73569361,2725.1,2723.7,4.33693613]
[1730935227233,3.0,2725.5,2723.8,4.23480393]
[1730935227509,3.0,2725.5,2723.8,3.85361223]
[1730935228105,3.02,2725.8,2723.8,3.85361223]
[1730935228311,0.73569361,2725.7,2723.8,3.85361223]
[1730935228514,0.73569361,2725.7,2724.1,3.0]
[1730935228744,0.73569361,2725.7,2724.2,0.0734052]
[1730935228942,0.73569361,2725.7,2724.1,3.0]
[1730935229519,0.55,2725.5,2724.2,0.07340513]
[1730935229722,0.55,2725.5,2724.1,3.0]
[1730935229723,0.20791936,2725.5,2724.3,0.8204]
[1730935229947,0.7935,2725.6,2724.3,0.8204]
[1730935230433,0.7935,2725.6,2724.4,3.0]
[1730935230937,0.7935,2725.6,2724.5,0.7815]
[1730935232327,0.06487651,2725.5,2724.5,0.7815]
[1730935232737,0.06487651,2725.5,2724.6,0.07339973]
[1730935233251,0.06487651,2725.5,2724.5,0.7815]
[1730935233619,0.7935,2725.6,2724.5,0.7815]
[1730935234962,1.3486,2726.4,2724.5,0.7815]
[1730935235162,0.7986,2726.3,2724.5,0.7815]
[1730935235457,0.55,2726.2,2724.7,3.0]
[1730935235663,0.61007407,2726.2,2724.7,3.0]
[1730935235966,0.55,2726.0,2724.7,3.0]
[1730935236331,0.84592509,2725.9,2724.7,3.0]
[1730935236669,0.55,2725.8,2724.5,0.7815]
[1730935237040,0.55,2725.8,2724.6,0.07339348]
[1730935237041,0.05796352,2725.7,2724.6,0.07339348]
[1730935237441,0.55,2725.6,2724.6,0.07339348]
[1730935237640,0.05792813,2725.6,2724.6,0.07339348]
[1730935237946,0.05792813,2725.6,2724.5,0.7815]
[1730935238974,0.05792813,2725.6,2724.6,0.07339345]
[1730935239177,0.7879,2725.9,2724.9,3.8259]
[1730935239899,0.7879,2725.9,2724.9,0.8259]
[1730935240181,0.0523151,2725.8,2724.9,0.8259]
[1730935240870,0.0523151,2725.8,2724.6,0.7701]
[1730935240871,0.55,2725.5,2724.6,0.7701]
[1730935241048,0.55,2725.5,2724.3,0.7701]
[1730935241245,0.05222271,2725.4,2724.3,0.7701]
[1730935241470,0.7717,2725.3,2724.3,0.7701]
[1730935241872,0.05215191,2725.2,2724.3,0.7701]
[1730935242275,0.05215191,2725.2,2724.4,0.07339853]
[1730935242783,0.7717,2725.3,2724.3,3.7701]
[1730935243170,0.05046862,2725.2,2724.3,3.7701]
[1730935243485,0.7717,2725.3,2724.3,3.7701]
[1730935243846,0.05046862,2725.2,2724.3,3.7701]
[1730935244048,0.05046862,2725.2,2724.0,3.8028]
[1730935244675,0.7632,2725.1,2724.0,0.8028]
[1730935244892,0.55,2724.8,2723.7,0.8124]
[1730935245162,0.05014401,2724.7,2723.8,0.07340664]
[1730935245562,0.05014401,2724.7,2723.9,3.46139077]
[1730935245763,0.7632,2724.9,2724.0,0.07341273]
[1730935245962,0.05003786,2724.6,2723.9,0.07341275]
[1730935246277,0.7632,2724.9,2723.9,0.07341275]
[1730935246484,0.7632,2724.9,2723.9,3.6912632]
[1730935246803,0.0501087,2724.8,2723.9,0.07341274]
[1730935247012,0.0501087,2724.8,2723.8,0.07341273]
[1730935247171,0.0501087,2724.8,2723.9,0.07341273]
[1730935247369,0.0501087,2724.8,2723.7,3.8124]
[1730935247597,0.55,2724.6,2723.8,0.07341272]
[1730935247930,0.7632,2724.3,2723.3,0.88583142]
[1730935248067,0.7632,2724.3,2723.3,0.8124]
[1730935248276,0.84864696,2724.2,2723.0,0.7471774]
[1730935248475,0.84864696,2724.2,2723.1,0.8005]
[1730935248707,0.84864696,2724.2,2723.2,0.69227832]
[1730935248922,0.04984696,2724.2,2723.5,0.8235]
[1730935249088,0.8279,2724.6,2723.6,0.07341385]
[1730935249292,0.8279,2724.6,2723.5,3.11709698]
[1730935249606,0.8279,2724.6,2723.7,4.20856817]
[1730935249772,0.8279,2724.6,2723.9,0.8172]
[1730935250171,0.8279,2724.6,2723.9,3.8172]
[1730935250409,0.8279,2724.6,2723.9,0.8172]
[1730935250715,0.8023,2725.1,2724.1,3.0]
[1730935250874,0.8023,2725.1,2724.2,0.07340615]
[1730935251073,0.8023,2725.1,2724.1,3.0]
[1730935251416,0.8023,2725.1,2724.0,0.7471774]
[1730935251713,0.8023,2724.9,2724.1,0.61892187]
[1730935251878,0.8023,2724.9,2723.9,0.8172]
[1730935252092,0.8023,2724.9,2724.0,0.07341204]
[1730935252292,0.04819355,2724.8,2724.0,0.07341204]
[1730935252489,0.7802,2724.7,2723.7,1.67549981]
[1730935252711,0.7802,2724.7,2723.8,0.61925612]
[1730935252921,0.7802,2724.7,2723.9,0.07341202]
[1730935253118,0.7802,2724.7,2723.9,3.69269634]
[1730935253322,0.7802,2724.7,2724.0,1.54801877]
[1730935253503,4.34069001,2725.6,2724.1,0.07340601]
[1730935253504,0.55,2725.3,2724.1,0.07340601]
[1730935253829,0.04676969,2725.2,2724.1,1.36646172]
[1730935254139,0.7802,2725.1,2724.2,0.61919628]
[1730935254294,0.7802,2725.1,2724.0,1.67591185]
[1730935254494,0.7802,2725.1,2724.2,0.7471774]
[1730935254814,0.7802,2725.1,2724.3,0.61915011]
[1730935255024,0.04519801,2725.0,2724.0,0.7471774]
[1730935255221,0.7802,2724.9,2724.1,0.61929797]
[1730935255405,0.04519484,2724.8,2723.8,0.7533]
[1730935255590,0.7802,2724.7,2723.8,4.37281432]
[1730935255794,0.7802,2724.7,2723.9,0.61951432]
[1730935255995,0.7802,2724.7,2723.8,1.68262153]
[1730935256191,0.7802,2724.7,2723.8,0.7533]
[1730935256436,0.7802,2724.7,2723.8,1.68263274]
[1730935256739,0.7802,2724.7,2723.9,0.69294588]
[1730935256893,0.7802,2724.7,2723.9,0.07341699]
[1730935257098,0.7802,2724.7,2723.9,4.62222375]
[1730935257293,0.7953,2725.4,2724.0,0.61945406]